[Event "Titled Tuesday Blitz October 11 Late 2022"]
[White "Meduri, Aakaash"]
[Black "Nozdrachev, Leonid"]
[WhiteFideId "2032252"]
[BlackFideId "24113433"]
[WhiteElo "2113"]
[BlackElo "2249"]
[Result "1/2-1/2"]
[Round "07"]
[TimeControl "180+1"]
[Date "2022.10.12"]
[WhiteClock "0:00:04"]
[BlackClock "0:00:01"]

1. Nf3 {[%clk 0:03:00]}  Nc6 {[%clk 0:02:56]} 2. d4 {[%clk 0:02:58]}  d5 {[%clk 0:02:55]} 3. Bf4 {[%clk 0:02:58]}  Bg4 {[%clk 0:02:55]} 4. c4 {[%clk 0:02:56]}  e6 {[%clk 0:02:52]} 5. e3 {[%clk 0:02:54]}  Bb4+ {[%clk 0:02:49]} 6. Nc3 {[%clk 0:02:54]}  Nf6 {[%clk 0:02:48]} 7. Qb3 {[%clk 0:02:50]}  a5 {[%clk 0:02:43]} 8. Be2 {[%clk 0:02:45]}  a4 {[%clk 0:02:41]} 9. Qc2 {[%clk 0:02:45]}  Bf5 {[%clk 0:02:40]} 10. Bd3 {[%clk 0:02:39]}  a3 {[%clk 0:02:28]} 11. Bxf5 {[%clk 0:02:31]}  exf5 {[%clk 0:02:29]} 12. O-O {[%clk 0:02:10]}  axb2 {[%clk 0:02:28]} 13. Qxb2 {[%clk 0:02:10]}  dxc4 {[%clk 0:02:23]} 14. a3 {[%clk 0:01:55]}  Bxc3 {[%clk 0:02:23]} 15. Qxc3 {[%clk 0:01:56]}  Nd5 {[%clk 0:02:21]} 16. Qxc4 {[%clk 0:01:54]}  Nxf4 {[%clk 0:02:20]} 17. exf4 {[%clk 0:01:55]}  O-O {[%clk 0:02:21]} 18. d5 {[%clk 0:01:37]}  Ne7 {[%clk 0:02:00]} 19. Rfd1 {[%clk 0:01:37]}  Ng6 {[%clk 0:01:58]} 20. g3 {[%clk 0:01:32]}  Qd6 {[%clk 0:01:55]} 21. a4 {[%clk 0:01:24]}  Rfd8 {[%clk 0:01:49]} 22. Rac1 {[%clk 0:01:24]}  c6 {[%clk 0:01:35]} 23. dxc6 {[%clk 0:01:20]}  Qxd1+ {[%clk 0:01:36]} 24. Rxd1 {[%clk 0:01:21]}  Rxd1+ {[%clk 0:01:36]} 25. Kg2 {[%clk 0:01:21]}  bxc6 {[%clk 0:01:37]} 26. Qxc6 {[%clk 0:01:19]}  Rdd8 {[%clk 0:01:35]} 27. Ne5 {[%clk 0:01:08]}  Nxe5 {[%clk 0:01:32]} 28. fxe5 {[%clk 0:01:09]}  Re8 {[%clk 0:01:25]} 29. f4 {[%clk 0:01:05]}  h6 {[%clk 0:01:20]} 30. h3 {[%clk 0:00:52]}  g6 {[%clk 0:01:14]} 31. g4 {[%clk 0:00:52]}  fxg4 {[%clk 0:01:12]} 32. hxg4 {[%clk 0:00:53]}  Rec8 {[%clk 0:01:10]} 33. Qb5 {[%clk 0:00:50]}  Rab8 {[%clk 0:01:09]} 34. Qd3 {[%clk 0:00:33]}  Rb2+ {[%clk 0:01:06]} 35. Kf3 {[%clk 0:00:31]}  Rcb8 {[%clk 0:01:06]} 36. Qd6 {[%clk 0:00:20]}  R2b3+ {[%clk 0:01:02]} 37. Ke2 {[%clk 0:00:19]}  Rc8 {[%clk 0:00:55]} 38. e6 {[%clk 0:00:18]}  Re8 {[%clk 0:00:51]} 39. f5 {[%clk 0:00:18]}  gxf5 {[%clk 0:00:43]} 40. gxf5 {[%clk 0:00:19]}  fxe6 {[%clk 0:00:43]} 41. fxe6 {[%clk 0:00:18]}  Rb7 {[%clk 0:00:40]} 42. Qg3+ {[%clk 0:00:16]}  Rg7 {[%clk 0:00:40]} 43. Qe5 {[%clk 0:00:16]}  Rg6 {[%clk 0:00:38]} 44. e7 {[%clk 0:00:15]}  Kf7 {[%clk 0:00:36]} 45. Qf5+ {[%clk 0:00:14]}  Kg7 {[%clk 0:00:34]} 46. Qe5+ {[%clk 0:00:14]}  Kh7 {[%clk 0:00:32]} 47. a5 {[%clk 0:00:12]}  Rg7 {[%clk 0:00:29]} 48. Qf5+ {[%clk 0:00:13]}  Kg8 {[%clk 0:00:27]} 49. Qd5+ {[%clk 0:00:12]}  Kh8 {[%clk 0:00:26]} 50. a6 {[%clk 0:00:07]}  Rexe7+ {[%clk 0:00:26]} 51. Kf3 {[%clk 0:00:07]}  Kh7 {[%clk 0:00:22]} 52. Qf5+ {[%clk 0:00:07]}  Kg8 {[%clk 0:00:22]} 53. Qd5+ {[%clk 0:00:06]}  Rgf7+ {[%clk 0:00:20]} 54. Kg4 {[%clk 0:00:06]}  Kh7 {[%clk 0:00:21]} 55. Qd3+ {[%clk 0:00:05]}  Kh8 {[%clk 0:00:21]} 56. Qd4+ {[%clk 0:00:06]}  Kh7 {[%clk 0:00:19]} 57. Qd3+ {[%clk 0:00:06]}  Kg7 {[%clk 0:00:19]} 58. Qd4+ {[%clk 0:00:06]}  Kg6 {[%clk 0:00:19]} 59. Qd6+ {[%clk 0:00:06]}  Kg7 {[%clk 0:00:15]} 60. Kh5 {[%clk 0:00:03]}  Rf5+ {[%clk 0:00:13]} 61. Kg4 {[%clk 0:00:04]}  Rg5+ {[%clk 0:00:13]} 62. Kf4 {[%clk 0:00:04]}  Rf7+ {[%clk 0:00:12]} 63. Ke4 {[%clk 0:00:04]}  Rg6 {[%clk 0:00:13]} 64. Qd4+ {[%clk 0:00:04]}  Kh7 {[%clk 0:00:12]} 65. Ke3 {[%clk 0:00:02]}  Rg3+ {[%clk 0:00:11]} 66. Ke2 {[%clk 0:00:02]}  Rg2+ {[%clk 0:00:11]} 67. Ke1 {[%clk 0:00:02]}  Re7+ {[%clk 0:00:11]} 68. Kf1 {[%clk 0:00:02]}  Ra2 {[%clk 0:00:09]} 69. Qd3+ {[%clk 0:00:03]}  Kh8 {[%clk 0:00:08]} 70. Qc3+ {[%clk 0:00:03]}  Rg7 {[%clk 0:00:08]} 71. Qc8+ {[%clk 0:00:02]}  Kh7 {[%clk 0:00:08]} 72. Qc6 {[%clk 0:00:02]}  Rf7+ {[%clk 0:00:06]} 73. Ke1 {[%clk 0:00:02]}  Re7+ {[%clk 0:00:05]} 74. Kd1 {[%clk 0:00:02]}  Rg7 {[%clk 0:00:04]} 75. Qe4+ {[%clk 0:00:03]}  Kh8 {[%clk 0:00:03]} 76. Qe8+ {[%clk 0:00:03]}  Kh7 {[%clk 0:00:03]} 77. Qe4+ {[%clk 0:00:04]}  Rg6 {[%clk 0:00:03]} 78. Qe7+ {[%clk 0:00:04]}  Rg7 {[%clk 0:00:01]} 79. Qe4+ {[%clk 0:00:04]} 1/2-1/2


[Site "https://www.chess.com"]

[Event "Titled Tuesday Blitz October 11 Late 2022"]
[White "Mekhane, Adam"]
[Black "Vrbljanac, Aleksandar"]
[WhiteFideId "36050601"]
[BlackFideId "932817"]
[WhiteElo "2486"]
[BlackElo "2604"]
[Result "0-1"]
[Round "07"]
[TimeControl "180+1"]
[Date "2022.10.12"]
[WhiteClock "0:00:01"]
[BlackClock "0:00:12"]

1. e4 {[%clk 0:03:00]}  e5 {[%clk 0:02:51]} 2. Nf3 {[%clk 0:03:00]}  Nc6 {[%clk 0:02:51]} 3. Bb5 {[%clk 0:03:00]}  a6 {[%clk 0:02:52]} 4. Ba4 {[%clk 0:03:00]}  Nf6 {[%clk 0:02:52]} 5. O-O {[%clk 0:03:01]}  Be7 {[%clk 0:02:53]} 6. Bxc6 {[%clk 0:03:01]}  dxc6 {[%clk 0:02:53]} 7. d3 {[%clk 0:03:02]}  Bd6 {[%clk 0:02:52]} 8. Nbd2 {[%clk 0:03:01]}  O-O {[%clk 0:02:53]} 9. Nc4 {[%clk 0:03:01]}  Re8 {[%clk 0:02:52]} 10. b3 {[%clk 0:02:57]}  b5 {[%clk 0:02:44]} 11. Ne3 {[%clk 0:02:54]}  g6 {[%clk 0:02:42]} 12. Bb2 {[%clk 0:02:53]}  Ng4 {[%clk 0:02:40]} 13. Qd2 {[%clk 0:02:31]}  Nxe3 {[%clk 0:02:30]} 14. Qxe3 {[%clk 0:02:20]}  Qe7 {[%clk 0:02:27]} 15. Rae1 {[%clk 0:02:12]}  c5 {[%clk 0:02:22]} 16. b4 {[%clk 0:02:05]}  cxb4 {[%clk 0:02:13]} 17. d4 {[%clk 0:02:06]}  f6 {[%clk 0:02:07]} 18. dxe5 {[%clk 0:01:46]}  fxe5 {[%clk 0:02:08]} 19. Nd2 {[%clk 0:01:33]}  c5 {[%clk 0:01:52]} 20. Qe2 {[%clk 0:01:01]}  Be6 {[%clk 0:01:40]} 21. f4 {[%clk 0:00:59]}  c4 {[%clk 0:01:28]} 22. Bxe5 {[%clk 0:00:52]}  Bxe5 {[%clk 0:01:26]} 23. fxe5 {[%clk 0:00:52]}  Qc5+ {[%clk 0:01:27]} 24. Kh1 {[%clk 0:00:51]}  Qxe5 {[%clk 0:01:27]} 25. Nf3 {[%clk 0:00:50]}  Qc5 {[%clk 0:01:07]} 26. Rd1 {[%clk 0:00:44]}  Rad8 {[%clk 0:01:07]} 27. Rxd8 {[%clk 0:00:32]}  Rxd8 {[%clk 0:01:07]} 28. Rd1 {[%clk 0:00:33]}  Qc7 {[%clk 0:00:56]} 29. Rd4 {[%clk 0:00:27]}  Rxd4 {[%clk 0:00:42]} 30. Nxd4 {[%clk 0:00:27]}  Qe5 {[%clk 0:00:41]} 31. Qe3 {[%clk 0:00:17]}  Bd7 {[%clk 0:00:36]} 32. h3 {[%clk 0:00:15]}  a5 {[%clk 0:00:34]} 33. Nf3 {[%clk 0:00:15]}  Qd6 {[%clk 0:00:15]} 34. e5 {[%clk 0:00:11]}  Qd5 {[%clk 0:00:15]} 35. Nd4 {[%clk 0:00:05]}  a4 {[%clk 0:00:14]} 36. e6 {[%clk 0:00:05]}  Be8 {[%clk 0:00:14]} 37. Qf4 {[%clk 0:00:04]}  b3 {[%clk 0:00:12]} 38. e7 {[%clk 0:00:03]}  Qf7 {[%clk 0:00:11]} 39. Qxf7+ {[%clk 0:00:01]}  Kxf7 {[%clk 0:00:12]} 40. cxb3 {[%clk 0:00:01]}  cxb3 {[%clk 0:00:11]} 41. axb3 {[%clk 0:00:01]}  a3 {[%clk 0:00:12]} 42. Nc2 {[%clk 0:00:01]}  a2 {[%clk 0:00:12]} 0-1


[Site "https://www.chess.com"]

[Event "Titled Tuesday Blitz October 11 Late 2022"]
[White "Migot, Tangi"]
[Black "Gasparyan, David"]
[WhiteFideId "662445"]
[BlackFideId "13311980"]
[WhiteElo "2480"]
[BlackElo "2345"]
[Result "1-0"]
[Round "07"]
[TimeControl "180+1"]
[Date "2022.10.12"]
[WhiteClock "0:01:57"]
[BlackClock "0:00:02"]

1. e4 {[%clk 0:03:00]}  c5 {[%clk 0:02:59]} 2. Nf3 {[%clk 0:03:01]}  e6 {[%clk 0:02:59]} 3. g3 {[%clk 0:03:00]}  Nf6 {[%clk 0:02:55]} 4. d3 {[%clk 0:02:59]}  Nc6 {[%clk 0:02:53]} 5. Bg2 {[%clk 0:02:59]}  d6 {[%clk 0:02:53]} 6. O-O {[%clk 0:02:59]}  Be7 {[%clk 0:02:54]} 7. Re1 {[%clk 0:02:59]}  Qc7 {[%clk 0:02:53]} 8. c3 {[%clk 0:03:00]}  Bd7 {[%clk 0:02:39]} 9. d4 {[%clk 0:03:00]}  cxd4 {[%clk 0:02:39]} 10. cxd4 {[%clk 0:03:01]}  Rc8 {[%clk 0:02:34]} 11. Nc3 {[%clk 0:03:01]}  a6 {[%clk 0:02:25]} 12. e5 {[%clk 0:03:00]}  dxe5 {[%clk 0:01:52]} 13. dxe5 {[%clk 0:03:01]}  Ng4 {[%clk 0:01:52]} 14. Bf4 {[%clk 0:03:01]}  h5 {[%clk 0:01:35]} 15. Ne4 {[%clk 0:03:00]}  Kf8 {[%clk 0:01:24]} 16. h3 {[%clk 0:02:45]}  Nh6 {[%clk 0:01:14]} 17. Qb3 {[%clk 0:02:43]}  Nf5 {[%clk 0:01:11]} 18. Red1 {[%clk 0:02:38]}  Nb4 {[%clk 0:01:02]} 19. Rac1 {[%clk 0:02:37]}  Bc6 {[%clk 0:01:01]} 20. Nd6 {[%clk 0:02:32]}  Bxd6 {[%clk 0:00:31]} 21. exd6 {[%clk 0:02:18]}  Qa5 {[%clk 0:00:31]} 22. Bd2 {[%clk 0:02:07]}  Qxa2 {[%clk 0:00:08]} 23. Qxb4 {[%clk 0:02:03]}  Kg8 {[%clk 0:00:09]} 24. Ne5 {[%clk 0:02:00]}  Kh7 {[%clk 0:00:03]} 25. Nxc6 {[%clk 0:01:58]}  bxc6 {[%clk 0:00:03]} 26. Rxc6 {[%clk 0:01:58]}  Rxc6 {[%clk 0:00:03]} 27. Bxc6 {[%clk 0:01:57]}  Rd8 {[%clk 0:00:02]} 28. Be4 {[%clk 0:01:57]} 1-0


[Site "https://www.chess.com"]

[Event "Titled Tuesday Blitz October 11 Late 2022"]
[White "Milosevic, Milos"]
[Black "Souleidis, Georgios"]
[WhiteFideId "964875"]
[BlackFideId "4206827"]
[WhiteElo "2321"]
[BlackElo "2401"]
[Result "0-1"]
[Round "07"]
[TimeControl "180+1"]
[Date "2022.10.12"]
[WhiteClock "0:00:02"]
[BlackClock "0:00:17"]

1. e4 {[%clk 0:03:00]}  c6 {[%clk 0:02:52]} 2. d4 {[%clk 0:02:58]}  d5 {[%clk 0:02:52]} 3. Nc3 {[%clk 0:02:59]}  dxe4 {[%clk 0:02:51]} 4. Nxe4 {[%clk 0:02:59]}  Nf6 {[%clk 0:02:52]} 5. Nxf6+ {[%clk 0:03:00]}  exf6 {[%clk 0:02:53]} 6. c3 {[%clk 0:03:00]}  Bd6 {[%clk 0:02:53]} 7. Bd3 {[%clk 0:03:01]}  O-O {[%clk 0:02:54]} 8. Qc2 {[%clk 0:03:02]}  Re8+ {[%clk 0:02:55]} 9. Ne2 {[%clk 0:03:02]}  h5 {[%clk 0:02:56]} 10. O-O {[%clk 0:03:02]}  h4 {[%clk 0:02:55]} 11. h3 {[%clk 0:03:02]}  Nd7 {[%clk 0:02:55]} 12. Bd2 {[%clk 0:03:02]}  Nf8 {[%clk 0:02:53]} 13. Rae1 {[%clk 0:03:03]}  Be6 {[%clk 0:02:53]} 14. f4 {[%clk 0:03:02]}  b5 {[%clk 0:02:38]} 15. b3 {[%clk 0:03:01]}  a6 {[%clk 0:02:23]} 16. f5 {[%clk 0:02:59]}  Bd7 {[%clk 0:02:23]} 17. c4 {[%clk 0:02:52]}  Nh7 {[%clk 0:01:57]} 18. Nf4 {[%clk 0:02:19]}  Ng5 {[%clk 0:01:45]} 19. Nh5 {[%clk 0:02:16]}  Qc7 {[%clk 0:01:30]} 20. c5 {[%clk 0:02:04]}  Bh2+ {[%clk 0:01:24]} 21. Kh1 {[%clk 0:02:02]}  Rxe1 {[%clk 0:01:01]} 22. Bxe1 {[%clk 0:00:59]}  Bg3 {[%clk 0:01:01]} 23. Bxg3 {[%clk 0:00:57]}  hxg3 {[%clk 0:01:02]} 24. Re1 {[%clk 0:00:56]}  Qa5 {[%clk 0:00:35]} 25. Re3 {[%clk 0:00:45]}  Re8 {[%clk 0:00:34]} 26. Rxe8+ {[%clk 0:00:44]}  Bxe8 {[%clk 0:00:35]} 27. Qe2 {[%clk 0:00:42]}  Kf8 {[%clk 0:00:30]} 28. Nxg3 {[%clk 0:00:41]}  Qc3 {[%clk 0:00:30]} 29. Qe3 {[%clk 0:00:30]}  Qa1+ {[%clk 0:00:30]} 30. Kh2 {[%clk 0:00:30]}  Qxa2 {[%clk 0:00:31]} 31. h4 {[%clk 0:00:26]}  Nh7 {[%clk 0:00:28]} 32. Be4 {[%clk 0:00:20]}  Qa5 {[%clk 0:00:24]} 33. Bf3 {[%clk 0:00:20]}  Qc7 {[%clk 0:00:24]} 34. Kh3 {[%clk 0:00:20]}  Bd7 {[%clk 0:00:22]} 35. Kg4 {[%clk 0:00:17]}  g6 {[%clk 0:00:22]} 36. Qh6+ {[%clk 0:00:17]}  Kg8 {[%clk 0:00:22]} 37. Kh3 {[%clk 0:00:16]}  Nf8 {[%clk 0:00:20]} 38. Kh2 {[%clk 0:00:15]}  Bxf5 {[%clk 0:00:20]} 39. h5 {[%clk 0:00:10]}  Be6 {[%clk 0:00:19]} 40. Qe3 {[%clk 0:00:05]}  a5 {[%clk 0:00:18]} 41. Qe4 {[%clk 0:00:05]}  f5 {[%clk 0:00:17]} 42. Qxc6 {[%clk 0:00:05]}  Qxc6 {[%clk 0:00:17]} 43. Bxc6 {[%clk 0:00:06]}  Bxb3 {[%clk 0:00:15]} 44. d5 {[%clk 0:00:06]}  a4 {[%clk 0:00:15]} 45. hxg6 {[%clk 0:00:02]}  a3 {[%clk 0:00:15]} 46. gxf7+ {[%clk 0:00:02]}  Kxf7 {[%clk 0:00:16]} 47. Bxb5 {[%clk 0:00:01]}  a2 {[%clk 0:00:16]} 48. c6 {[%clk 0:00:02]}  a1=Q {[%clk 0:00:14]} 49. c7 {[%clk 0:00:03]}  Qa8 {[%clk 0:00:13]} 50. d6 {[%clk 0:00:03]}  Ke6 {[%clk 0:00:12]} 51. Bd3 {[%clk 0:00:01]}  f4 {[%clk 0:00:11]} 52. Bf5+ {[%clk 0:00:02]}  Kxd6 {[%clk 0:00:12]} 53. c8=Q {[%clk 0:00:02]}  Qxc8 {[%clk 0:00:12]} 54. Bxc8 {[%clk 0:00:02]}  fxg3+ {[%clk 0:00:12]} 55. Kxg3 {[%clk 0:00:03]}  Ke5 {[%clk 0:00:13]} 56. Kf2 {[%clk 0:00:03]}  Kf4 {[%clk 0:00:13]} 57. Bb7 {[%clk 0:00:04]}  Be6 {[%clk 0:00:12]} 58. g3+ {[%clk 0:00:04]}  Kg5 {[%clk 0:00:13]} 59. Bf3 {[%clk 0:00:04]}  Ng6 {[%clk 0:00:12]} 60. Ke3 {[%clk 0:00:04]}  Ne5 {[%clk 0:00:12]} 61. Be2 {[%clk 0:00:04]}  Kf6 {[%clk 0:00:12]} 62. Kf4 {[%clk 0:00:03]}  Nf7 {[%clk 0:00:12]} 63. g4 {[%clk 0:00:02]}  Ng5 {[%clk 0:00:12]} 64. Bf3 {[%clk 0:00:02]}  Bf7 {[%clk 0:00:13]} 65. Be4 {[%clk 0:00:02]}  Ne6+ {[%clk 0:00:13]} 66. Kg3 {[%clk 0:00:02]}  Kg5 {[%clk 0:00:13]} 67. Bf5 {[%clk 0:00:02]}  Ng7 {[%clk 0:00:13]} 68. Bc8 {[%clk 0:00:02]}  Ba2 {[%clk 0:00:14]} 69. Bf5 {[%clk 0:00:02]}  Bb3 {[%clk 0:00:14]} 70. Kf2 {[%clk 0:00:03]}  Kf4 {[%clk 0:00:14]} 71. Ke1 {[%clk 0:00:03]}  Ne8 {[%clk 0:00:14]} 72. Kd2 {[%clk 0:00:02]}  Bd5 {[%clk 0:00:14]} 73. Kc3 {[%clk 0:00:03]}  Ke5 {[%clk 0:00:14]} 74. Kd3 {[%clk 0:00:03]}  Nf6 {[%clk 0:00:14]} 75. Kc3 {[%clk 0:00:03]}  Bf7 {[%clk 0:00:13]} 76. Kb4 {[%clk 0:00:03]}  Nd5+ {[%clk 0:00:13]} 77. Kc5 {[%clk 0:00:03]}  Ne3 {[%clk 0:00:14]} 78. Kc6 {[%clk 0:00:03]}  Bd5+ {[%clk 0:00:14]} 79. Kc5 {[%clk 0:00:03]}  Nc4 {[%clk 0:00:14]} 80. Bd3 {[%clk 0:00:02]}  Nd6 {[%clk 0:00:15]} 81. Bf5 {[%clk 0:00:03]}  Nb7+ {[%clk 0:00:15]} 82. Kb6 {[%clk 0:00:03]}  Nd6 {[%clk 0:00:16]} 83. Kc5 {[%clk 0:00:03]}  Ne8 {[%clk 0:00:17]} 84. Bd7 {[%clk 0:00:03]}  Nf6 {[%clk 0:00:16]} 85. Bf5 {[%clk 0:00:04]}  Bf7 {[%clk 0:00:16]} 86. Kc6 {[%clk 0:00:04]}  Bd5+ {[%clk 0:00:16]} 87. Kc5 {[%clk 0:00:04]}  Ng8 {[%clk 0:00:17]} 88. Kb5 {[%clk 0:00:04]}  Ne7 {[%clk 0:00:17]} 89. Kc5 {[%clk 0:00:04]}  Nc6 {[%clk 0:00:17]} 90. Kb6 {[%clk 0:00:04]}  Kd6 {[%clk 0:00:18]} 91. Ka6 {[%clk 0:00:05]}  Kc5 {[%clk 0:00:18]} 92. Kb7 {[%clk 0:00:05]}  Ne7+ {[%clk 0:00:18]} 93. Kc7 {[%clk 0:00:05]}  Ng8 {[%clk 0:00:17]} 94. g5 {[%clk 0:00:05]}  Bc4 {[%clk 0:00:16]} 95. g6 {[%clk 0:00:05]}  Kd5 {[%clk 0:00:16]} 96. Kd7 {[%clk 0:00:03]}  Ke5 {[%clk 0:00:17]} 97. Bb1 {[%clk 0:00:02]}  Kf6 {[%clk 0:00:17]} 98. Kd6 {[%clk 0:00:02]}  Be6 {[%clk 0:00:17]} 99. Kc5 {[%clk 0:00:02]}  Ne7 {[%clk 0:00:18]} 100. Kd6 {[%clk 0:00:02]}  Nc8+ {[%clk 0:00:18]} 101. Kc7 {[%clk 0:00:02]}  Ke7 {[%clk 0:00:18]} 102. g7 {[%clk 0:00:02]}  Nd6 {[%clk 0:00:17]} 0-1


[Site "https://www.chess.com"]

[Event "Titled Tuesday Blitz October 11 Late 2022"]
[White "Mirzoev, Azer"]
[Black "Rustemov, Alexander"]
[WhiteFideId "13400304"]
[BlackFideId "4119002"]
[WhiteElo "2525"]
[BlackElo "2861"]
[Result "0-1"]
[Round "07"]
[TimeControl "180+1"]
[Date "2022.10.11"]
[WhiteClock "0:00:01"]
[BlackClock "0:00:16"]

1. Nf3 {[%clk 0:02:58]}  d5 {[%clk 0:02:59]} 2. c4 {[%clk 0:02:58]}  c6 {[%clk 0:02:58]} 3. e3 {[%clk 0:02:58]}  Nf6 {[%clk 0:02:59]} 4. Nc3 {[%clk 0:02:57]}  a6 {[%clk 0:02:58]} 5. b3 {[%clk 0:02:54]}  Bf5 {[%clk 0:02:57]} 6. Bb2 {[%clk 0:02:54]}  h6 {[%clk 0:02:57]} 7. d4 {[%clk 0:02:52]}  e6 {[%clk 0:02:57]} 8. Bd3 {[%clk 0:02:52]}  Bxd3 {[%clk 0:02:56]} 9. Qxd3 {[%clk 0:02:53]}  Be7 {[%clk 0:02:53]} 10. O-O {[%clk 0:02:53]}  O-O {[%clk 0:02:52]} 11. h3 {[%clk 0:02:54]}  Nbd7 {[%clk 0:02:51]} 12. Rfd1 {[%clk 0:02:54]}  Re8 {[%clk 0:02:44]} 13. Rac1 {[%clk 0:02:54]}  Bb4 {[%clk 0:02:37]} 14. Qc2 {[%clk 0:02:52]}  Qe7 {[%clk 0:02:36]} 15. g3 {[%clk 0:02:46]}  Rad8 {[%clk 0:02:35]} 16. Kg2 {[%clk 0:02:45]}  Bxc3 {[%clk 0:02:24]} 17. Bxc3 {[%clk 0:02:45]}  Ne4 {[%clk 0:02:24]} 18. Be1 {[%clk 0:02:40]}  f5 {[%clk 0:02:20]} 19. Ng1 {[%clk 0:02:38]}  g5 {[%clk 0:02:18]} 20. Ne2 {[%clk 0:02:37]}  g4 {[%clk 0:02:16]} 21. Nf4 {[%clk 0:02:33]}  Ndf6 {[%clk 0:02:13]} 22. h4 {[%clk 0:02:29]}  Qf7 {[%clk 0:02:13]} 23. a4 {[%clk 0:02:26]}  Nh5 {[%clk 0:02:12]} 24. Nd3 {[%clk 0:02:20]}  Kh7 {[%clk 0:02:06]} 25. b4 {[%clk 0:02:15]}  Nd6 {[%clk 0:02:03]} 26. Ne5 {[%clk 0:02:01]}  Qe7 {[%clk 0:02:01]} 27. cxd5 {[%clk 0:01:56]}  exd5 {[%clk 0:02:00]} 28. b5 {[%clk 0:01:55]}  cxb5 {[%clk 0:01:46]} 29. axb5 {[%clk 0:01:50]}  Rc8 {[%clk 0:01:46]} 30. Qb1 {[%clk 0:01:46]}  Nf6 {[%clk 0:01:36]} 31. bxa6 {[%clk 0:01:45]}  bxa6 {[%clk 0:01:36]} 32. Bb4 {[%clk 0:01:40]}  Nfe4 {[%clk 0:01:35]} 33. Bxd6 {[%clk 0:01:32]}  Nxd6 {[%clk 0:01:35]} 34. Nxg4 {[%clk 0:01:22]}  Qe4+ {[%clk 0:01:25]} 35. Qxe4 {[%clk 0:01:21]}  Nxe4 {[%clk 0:01:26]} 36. Ne5 {[%clk 0:01:17]}  Rxc1 {[%clk 0:01:26]} 37. Rxc1 {[%clk 0:01:16]}  Ra8 {[%clk 0:01:27]} 38. Rc7+ {[%clk 0:00:47]}  Kg8 {[%clk 0:01:25]} 39. Ng6 {[%clk 0:00:44]}  Nf6 {[%clk 0:01:05]} 40. Ne7+ {[%clk 0:00:39]}  Kf8 {[%clk 0:01:06]} 41. Ng6+ {[%clk 0:00:24]}  Ke8 {[%clk 0:00:59]} 42. Rc6 {[%clk 0:00:20]}  Ne4 {[%clk 0:00:51]} 43. Nf4 {[%clk 0:00:18]}  a5 {[%clk 0:00:47]} 44. Rxh6 {[%clk 0:00:14]}  Kf7 {[%clk 0:00:45]} 45. Nxd5 {[%clk 0:00:11]}  a4 {[%clk 0:00:45]} 46. Nb4 {[%clk 0:00:11]}  Rb8 {[%clk 0:00:42]} 47. Nd3 {[%clk 0:00:09]}  Ra8 {[%clk 0:00:37]} 48. Nc1 {[%clk 0:00:08]}  Rc8 {[%clk 0:00:35]} 49. Nd3 {[%clk 0:00:08]}  Ra8 {[%clk 0:00:34]} 50. Nc1 {[%clk 0:00:07]}  a3 {[%clk 0:00:35]} 51. Na2 {[%clk 0:00:06]}  Nf6 {[%clk 0:00:31]} 52. g4 {[%clk 0:00:04]}  fxg4 {[%clk 0:00:31]} 53. h5 {[%clk 0:00:03]}  Rb8 {[%clk 0:00:29]} 54. e4 {[%clk 0:00:02]}  Nxe4 {[%clk 0:00:23]} 55. Ra6 {[%clk 0:00:02]}  Rb2 {[%clk 0:00:21]} 56. Rxa3 {[%clk 0:00:01]}  Rxf2+ {[%clk 0:00:20]} 57. Kg1 {[%clk 0:00:02]}  Rd2 {[%clk 0:00:19]} 58. Nc3 {[%clk 0:00:01]}  Ng5 {[%clk 0:00:16]} 0-1


[Site "https://www.chess.com"]

[Event "Titled Tuesday Blitz October 11 Late 2022"]
[White "Nasuta, Grzegorz"]
[Black "Skatchkov, Valery"]
[WhiteFideId "1141686"]
[BlackFideId "24195812"]
[WhiteElo "2442"]
[BlackElo "2199"]
[Result "0-1"]
[Round "07"]
[TimeControl "180+1"]
[Date "2022.10.11"]
[WhiteClock "0:01:45"]
[BlackClock "0:02:38"]

1. e4 {[%clk 0:03:00]}  e5 {[%clk 0:02:58]} 2. Nf3 {[%clk 0:03:01]}  d5 {[%clk 0:02:57]} 3. exd5 {[%clk 0:02:44]}  e4 {[%clk 0:02:58]} 4. Nd4 {[%clk 0:02:20]}  Qxd5 {[%clk 0:02:57]} 5. Nb3 {[%clk 0:02:20]}  Qe5 {[%clk 0:02:58]} 6. Be2 {[%clk 0:02:15]}  Bd6 {[%clk 0:02:57]} 7. Na3 {[%clk 0:02:10]}  Be6 {[%clk 0:02:55]} 8. Nb5 {[%clk 0:02:10]}  Nf6 {[%clk 0:02:46]} 9. Nxd6+ {[%clk 0:02:09]}  Qxd6 {[%clk 0:02:47]} 10. d3 {[%clk 0:02:07]}  Nc6 {[%clk 0:02:42]} 11. dxe4 {[%clk 0:02:04]}  Qb4+ {[%clk 0:02:40]} 12. Bd2 {[%clk 0:01:51]}  Qxe4 {[%clk 0:02:39]} 13. O-O {[%clk 0:01:51]}  O-O-O {[%clk 0:02:37]} 14. Bf3 {[%clk 0:01:50]}  Qc4 {[%clk 0:02:37]} 15. Qe2 {[%clk 0:01:46]}  Qxe2 {[%clk 0:02:37]} 16. Bxe2 {[%clk 0:01:45]}  Bxb3 {[%clk 0:02:38]} 0-1


[Site "https://www.chess.com"]